[Event "Titled Tuesday Blitz March 28 Late 2023"]
[White "Piesik, Piotr"]
[Black "Eggleston, Thomas A"]
[WhiteFideId "1136194"]
[BlackFideId "412139"]
[WhiteElo "2311"]
[BlackElo "2155"]
[Result "1-0"]
[Round "02"]
[TimeControl "180+2"]
[Date "2023.03.28"]
[WhiteClock "0:00:20"]
[BlackClock "0:00:02"]

1. Nf3 {[%clk 0:02:30]}  e6 {[%clk 0:02:57]} 2. g3 {[%clk 0:02:31]}  f5 {[%clk 0:02:57]} 3. Bg2 {[%clk 0:02:32]}  Nf6 {[%clk 0:02:57]} 4. O-O {[%clk 0:02:33]}  d5 {[%clk 0:02:54]} 5. d3 {[%clk 0:02:33]}  c6 {[%clk 0:02:52]} 6. Nbd2 {[%clk 0:02:34]}  Bd6 {[%clk 0:02:51]} 7. e4 {[%clk 0:02:34]}  Nbd7 {[%clk 0:02:47]} 8. exf5 {[%clk 0:02:32]}  exf5 {[%clk 0:02:46]} 9. Re1+ {[%clk 0:02:32]}  Kf8 {[%clk 0:02:40]} 10. Ng5 {[%clk 0:02:32]}  Nb6 {[%clk 0:02:32]} 11. a4 {[%clk 0:02:26]}  h6 {[%clk 0:02:31]} 12. Ne6+ {[%clk 0:02:26]}  Bxe6 {[%clk 0:02:31]} 13. Rxe6 {[%clk 0:02:27]}  Kf7 {[%clk 0:02:29]} 14. Re2 {[%clk 0:02:23]}  Rf8 {[%clk 0:02:11]} 15. a5 {[%clk 0:02:23]}  Nbd7 {[%clk 0:02:10]} 16. a6 {[%clk 0:02:21]}  b6 {[%clk 0:02:09]} 17. Nf3 {[%clk 0:02:21]}  Kg8 {[%clk 0:01:46]} 18. Nd4 {[%clk 0:02:21]}  Qc8 {[%clk 0:01:12]} 19. Nxf5 {[%clk 0:02:18]}  Qc7 {[%clk 0:01:10]} 20. Nxd6 {[%clk 0:02:16]}  Qxd6 {[%clk 0:01:10]} 21. Bf4 {[%clk 0:02:17]}  Qc5 {[%clk 0:01:06]} 22. Qd2 {[%clk 0:02:13]}  Rae8 {[%clk 0:01:05]} 23. Rae1 {[%clk 0:02:11]}  Rxe2 {[%clk 0:01:01]} 24. Rxe2 {[%clk 0:02:12]}  b5 {[%clk 0:01:02]} 25. Bh3 {[%clk 0:02:08]}  d4 {[%clk 0:00:59]} 26. b4 {[%clk 0:02:04]}  Qh5 {[%clk 0:00:58]} 27. Be6+ {[%clk 0:02:02]}  Kh8 {[%clk 0:00:58]} 28. Kg2 {[%clk 0:01:55]}  Re8 {[%clk 0:00:52]} 29. Re1 {[%clk 0:01:48]}  Nf8 {[%clk 0:00:47]} 30. Bb3 {[%clk 0:01:38]}  Rxe1 {[%clk 0:00:41]} 31. Qxe1 {[%clk 0:01:39]}  Ng6 {[%clk 0:00:37]} 32. Bb8 {[%clk 0:01:36]}  Qg5 {[%clk 0:00:32]} 33. Kf1 {[%clk 0:01:14]}  Qf5 {[%clk 0:00:21]} 34. Qe6 {[%clk 0:01:10]}  Qf3 {[%clk 0:00:17]} 35. h3 {[%clk 0:01:01]}  Kh7 {[%clk 0:00:14]} 36. Bxa7 {[%clk 0:00:51]}  Qh1+ {[%clk 0:00:12]} 37. Ke2 {[%clk 0:00:51]}  Qc1 {[%clk 0:00:04]} 38. Bxd4 {[%clk 0:00:49]}  Nd5 {[%clk 0:00:02]} 39. Bxd5 {[%clk 0:00:36]}  Qxc2+ {[%clk 0:00:02]} 40. Kf1 {[%clk 0:00:31]}  cxd5 {[%clk 0:00:03]} 41. Qe2 {[%clk 0:00:20]}  Qb1+ {[%clk 0:00:02]} 42. Kg2 {[%clk 0:00:20]} 1-0


[Site "https://www.chess.com"]

[Event "Titled Tuesday Blitz March 28 Late 2023"]
[White "Bongo Akanga Ndjila, Barthelemy"]
[Black "Freitag, Manfred"]
[WhiteFideId "10609431"]
[BlackFideId "1602004"]
[WhiteElo "1768"]
[BlackElo "2275"]
[Result "0-1"]
[Round "02"]
[TimeControl "180+2"]
[Date "2023.03.28"]
[WhiteClock "0:01:08"]
[BlackClock "0:02:15"]

1. d4 {[%clk 0:02:50]}  Nf6 {[%clk 0:02:59]} 2. c4 {[%clk 0:02:49]}  g6 {[%clk 0:03:00]} 3. Nc3 {[%clk 0:02:49]}  Bg7 {[%clk 0:03:00]} 4. e4 {[%clk 0:02:49]}  d6 {[%clk 0:03:01]} 5. Be2 {[%clk 0:02:49]}  O-O {[%clk 0:03:02]} 6. Nf3 {[%clk 0:02:50]}  e5 {[%clk 0:03:02]} 7. O-O {[%clk 0:02:49]}  Nc6 {[%clk 0:03:01]} 8. d5 {[%clk 0:02:50]}  Ne7 {[%clk 0:03:01]} 9. Ne1 {[%clk 0:02:50]}  Nd7 {[%clk 0:03:02]} 10. g4 {[%clk 0:02:51]}  f5 {[%clk 0:02:58]} 11. f3 {[%clk 0:02:51]}  Kh8 {[%clk 0:02:57]} 12. Ng2 {[%clk 0:02:51]}  Ng8 {[%clk 0:02:57]} 13. h4 {[%clk 0:02:51]}  Bf6 {[%clk 0:02:50]} 14. g5 {[%clk 0:02:46]}  Bg7 {[%clk 0:02:50]} 15. Be3 {[%clk 0:02:46]}  f4 {[%clk 0:02:50]} 16. Bf2 {[%clk 0:02:46]}  h6 {[%clk 0:02:51]} 17. gxh6 {[%clk 0:02:44]}  Nxh6 {[%clk 0:02:51]} 18. b4 {[%clk 0:02:43]}  Nf6 {[%clk 0:02:49]} 19. c5 {[%clk 0:02:43]}  Nh5 {[%clk 0:02:50]} 20. cxd6 {[%clk 0:02:37]}  cxd6 {[%clk 0:02:50]} 21. Rc1 {[%clk 0:02:38]}  Bf6 {[%clk 0:02:47]} 22. Nb5 {[%clk 0:02:37]}  Ng3 {[%clk 0:02:45]} 23. Re1 {[%clk 0:02:33]}  Bxh4 {[%clk 0:02:44]} 24. Nc7 {[%clk 0:02:30]}  Rb8 {[%clk 0:02:40]} 25. Ne6 {[%clk 0:02:30]}  Bxe6 {[%clk 0:02:40]} 26. dxe6 {[%clk 0:02:30]}  Nxe2+ {[%clk 0:02:39]} 27. Qxe2 {[%clk 0:02:27]}  Bg3 {[%clk 0:02:40]} 28. Red1 {[%clk 0:02:06]}  Qe7 {[%clk 0:02:37]} 29. Rd5 {[%clk 0:02:02]}  Qxe6 {[%clk 0:02:34]} 30. Rc7 {[%clk 0:01:58]}  Rf7 {[%clk 0:02:34]} 31. Rxf7 {[%clk 0:01:56]}  Nxf7 {[%clk 0:02:33]} 32. Bxa7 {[%clk 0:01:54]}  Rc8 {[%clk 0:02:33]} 33. Bf2 {[%clk 0:01:50]}  Ng5 {[%clk 0:02:32]} 34. Qd2 {[%clk 0:01:48]}  Nh3+ {[%clk 0:02:32]} 35. Kf1 {[%clk 0:01:41]}  Nxf2 {[%clk 0:02:30]} 36. Rxd6 {[%clk 0:01:41]}  Qc4+ {[%clk 0:02:28]} 37. Ke1 {[%clk 0:01:36]}  Qc1+ {[%clk 0:02:25]} 38. Qxc1 {[%clk 0:01:35]}  Rxc1+ {[%clk 0:02:25]} 39. Ke2 {[%clk 0:01:36]}  Rc2+ {[%clk 0:02:22]} 40. Kf1 {[%clk 0:01:30]}  Nh3 {[%clk 0:02:16]} 41. Rxg6 {[%clk 0:01:20]}  Rf2+ {[%clk 0:02:16]} 42. Ke1 {[%clk 0:01:15]}  Rxg2+ {[%clk 0:02:16]} 43. Kd1 {[%clk 0:01:16]}  Rxa2 {[%clk 0:02:15]} 44. Rb6 {[%clk 0:01:15]}  Ng5 {[%clk 0:02:15]} 45. Rxb7 {[%clk 0:01:14]}  Nxf3 {[%clk 0:02:15]} 46. b5 {[%clk 0:01:13]}  Bf2 {[%clk 0:02:14]} 47. b6 {[%clk 0:01:12]}  Be3 {[%clk 0:02:14]} 48. Rb8+ {[%clk 0:01:12]}  Kg7 {[%clk 0:02:13]} 49. b7 {[%clk 0:01:13]}  Rd2+ {[%clk 0:02:14]} 50. Kc1 {[%clk 0:01:08]}  Rd8+ {[%clk 0:02:15]} 0-1


[Site "https://www.chess.com"]

[Event "Titled Tuesday Blitz March 28 Late 2023"]
[White "Adan Bermudez, Sergio"]
[Black "Coelho, Ramyres Santana"]
[WhiteFideId "2292726"]
[BlackFideId "2120690"]
[WhiteElo "2292"]
[BlackElo "1888"]
[Result "1-0"]
[Round "02"]
[TimeControl "180+2"]
[Date "2023.03.28"]
[WhiteClock "0:01:24"]
[BlackClock "0:00:02"]

1. c4 {[%clk 0:03:00]}  Nf6 {[%clk 0:03:00]} 2. Nc3 {[%clk 0:03:00]}  e5 {[%clk 0:03:00]} 3. Nf3 {[%clk 0:02:59]}  d6 {[%clk 0:03:00]} 4. g3 {[%clk 0:03:00]}  g6 {[%clk 0:03:00]} 5. Bg2 {[%clk 0:03:00]}  Bg7 {[%clk 0:03:01]} 6. O-O {[%clk 0:03:00]}  O-O {[%clk 0:03:01]} 7. Rb1 {[%clk 0:03:00]}  Nc6 {[%clk 0:03:01]} 8. b4 {[%clk 0:02:59]}  Nd4 {[%clk 0:03:01]} 9. Ne1 {[%clk 0:02:57]}  c5 {[%clk 0:02:54]} 10. bxc5 {[%clk 0:02:51]}  dxc5 {[%clk 0:02:55]} 11. Bxb7 {[%clk 0:02:51]}  Bxb7 {[%clk 0:02:56]} 12. Rxb7 {[%clk 0:02:52]}  Qc8 {[%clk 0:02:50]} 13. Rb1 {[%clk 0:02:45]}  Qh3 {[%clk 0:02:48]} 14. f3 {[%clk 0:02:41]}  Nh5 {[%clk 0:02:47]} 15. Ne4 {[%clk 0:02:35]}  Qe6 {[%clk 0:02:35]} 16. Nxc5 {[%clk 0:02:32]}  Qxc4 {[%clk 0:02:34]} 17. Ned3 {[%clk 0:02:19]}  Qxa2 {[%clk 0:02:29]} 18. Bb2 {[%clk 0:02:15]}  Qd5 {[%clk 0:02:24]} 19. e3 {[%clk 0:01:59]}  Ne6 {[%clk 0:02:10]} 20. Nxe6 {[%clk 0:01:58]}  Qxe6 {[%clk 0:01:48]} 21. Bc3 {[%clk 0:01:58]}  Rfd8 {[%clk 0:01:40]} 22. Nf2 {[%clk 0:01:57]}  a5 {[%clk 0:01:33]} 23. Qa4 {[%clk 0:01:55]}  Qd5 {[%clk 0:01:11]} 24. Ne4 {[%clk 0:01:55]}  f5 {[%clk 0:01:05]} 25. Rb5 {[%clk 0:01:54]}  Qd3 {[%clk 0:00:58]} 26. Qb3+ {[%clk 0:01:50]}  Kh8 {[%clk 0:00:54]} 27. Ng5 {[%clk 0:01:50]}  Ra7 {[%clk 0:00:43]} 28. Rb8 {[%clk 0:01:34]}  Bf6 {[%clk 0:00:13]} 29. Nf7+ {[%clk 0:01:24]}  Rxf7 {[%clk 0:00:10]} 30. Rxd8+ {[%clk 0:01:25]}  Qxd8 {[%clk 0:00:06]} 31. Qxf7 {[%clk 0:01:25]}  Qe7 {[%clk 0:00:01]} 32. Qxe7 {[%clk 0:01:23]}  Bxe7 {[%clk 0:00:02]} 33. Bxe5+ {[%clk 0:01:22]}  Kg8 {[%clk 0:00:01]} 34. Ra1 {[%clk 0:01:22]}  Bb4 {[%clk 0:00:01]} 35. Bc3 {[%clk 0:01:21]}  Bxc3 {[%clk 0:00:01]} 36. dxc3 {[%clk 0:01:21]}  Nf6 {[%clk 0:00:02]} 37. Rxa5 {[%clk 0:01:21]}  Kf7 {[%clk 0:00:02]} 38. Kf2 {[%clk 0:01:20]}  Ke6 {[%clk 0:00:01]} 39. Ra6+ {[%clk 0:01:20]}  Ke5 {[%clk 0:00:01]} 40. Rxf6 {[%clk 0:01:21]}  Kxf6 {[%clk 0:00:01]} 41. Ke2 {[%clk 0:01:22]}  Ke5 {[%clk 0:00:02]} 42. Kd3 {[%clk 0:01:22]}  Kd5 {[%clk 0:00:03]} 43. c4+ {[%clk 0:01:23]}  Kc5 {[%clk 0:00:03]} 44. Kc3 {[%clk 0:01:24]}  g5 {[%clk 0:00:03]} 45. e4 {[%clk 0:01:23]}  fxe4 {[%clk 0:00:03]} 46. fxe4 {[%clk 0:01:24]}  h5 {[%clk 0:00:02]} 47. h3 {[%clk 0:01:24]} 1-0


[Site "https://www.chess.com"]

[Event "Titled Tuesday Blitz March 28 Late 2023"]
[White "Gholami Orimi, Mahdi"]
[Black "Villalba, Marcelo"]
[WhiteFideId "12558486"]
[BlackFideId "3701859"]
[WhiteElo "2363"]
[BlackElo "2191"]
[Result "1-0"]
[Round "02"]
[TimeControl "180+2"]
[Date "2023.03.28"]
[WhiteClock "0:01:41"]
[BlackClock "0:00:03"]

1. d4 {[%clk 0:02:56]}  Nf6 {[%clk 0:02:59]} 2. c4 {[%clk 0:02:57]}  e6 {[%clk 0:02:59]} 3. Nc3 {[%clk 0:02:58]}  d5 {[%clk 0:03:00]} 4. cxd5 {[%clk 0:02:57]}  exd5 {[%clk 0:03:00]} 5. Bg5 {[%clk 0:02:58]}  Nbd7 {[%clk 0:03:00]} 6. e3 {[%clk 0:02:58]}  c6 {[%clk 0:02:59]} 7. Bd3 {[%clk 0:02:58]}  Be7 {[%clk 0:03:00]} 8. Nge2 {[%clk 0:02:58]}  Nh5 {[%clk 0:02:58]} 9. Bxe7 {[%clk 0:02:58]}  Qxe7 {[%clk 0:02:59]} 10. Qc2 {[%clk 0:02:56]}  g6 {[%clk 0:02:59]} 11. O-O {[%clk 0:02:56]}  O-O {[%clk 0:02:59]} 12. Rae1 {[%clk 0:02:56]}  Ndf6 {[%clk 0:02:49]} 13. Nc1 {[%clk 0:02:56]}  Be6 {[%clk 0:02:31]} 14. f3 {[%clk 0:02:57]}  Rfd8 {[%clk 0:02:32]} 15. Nb3 {[%clk 0:02:57]}  b6 {[%clk 0:02:24]} 16. Qf2 {[%clk 0:02:55]}  c5 {[%clk 0:02:19]} 17. Bb1 {[%clk 0:02:56]}  c4 {[%clk 0:02:08]} 18. Nd2 {[%clk 0:02:55]}  Rab8 {[%clk 0:02:06]} 19. h3 {[%clk 0:02:54]}  b5 {[%clk 0:02:03]} 20. e4 {[%clk 0:02:55]}  b4 {[%clk 0:01:47]} 21. Nxd5 {[%clk 0:02:52]}  Bxd5 {[%clk 0:01:46]} 22. exd5 {[%clk 0:02:53]}  Qc7 {[%clk 0:01:45]} 23. f4 {[%clk 0:02:46]}  Nxd5 {[%clk 0:01:39]} 24. f5 {[%clk 0:02:46]}  Ng3 {[%clk 0:01:31]} 25. Nxc4 {[%clk 0:02:22]}  Nxf1 {[%clk 0:01:26]} 26. Qxf1 {[%clk 0:02:22]}  Re8 {[%clk 0:01:02]} 27. Ne5 {[%clk 0:02:16]}  f6 {[%clk 0:00:52]} 28. Be4 {[%clk 0:02:08]}  Ne3 {[%clk 0:00:21]} 29. Rxe3 {[%clk 0:02:04]}  fxe5 {[%clk 0:00:21]} 30. fxg6 {[%clk 0:02:05]}  exd4 {[%clk 0:00:17]} 31. gxh7+ {[%clk 0:02:04]}  Kh8 {[%clk 0:00:17]} 32. Qf6+ {[%clk 0:01:58]}  Qg7 {[%clk 0:00:16]} 33. Qxg7+ {[%clk 0:01:58]}  Kxg7 {[%clk 0:00:16]} 34. Rg3+ {[%clk 0:01:59]}  Kh8 {[%clk 0:00:16]} 35. Bf5 {[%clk 0:01:58]}  Rbd8 {[%clk 0:00:15]} 36. Kf2 {[%clk 0:01:47]}  d3 {[%clk 0:00:15]} 37. Rxd3 {[%clk 0:01:45]}  Rxd3 {[%clk 0:00:11]} 38. Bxd3 {[%clk 0:01:46]}  Re5 {[%clk 0:00:09]} 39. g4 {[%clk 0:01:46]}  Kg7 {[%clk 0:00:08]} 40. h4 {[%clk 0:01:46]}  a5 {[%clk 0:00:08]} 41. g5 {[%clk 0:01:45]}  a4 {[%clk 0:00:08]} 42. Kf3 {[%clk 0:01:45]}  a3 {[%clk 0:00:07]} 43. bxa3 {[%clk 0:01:44]}  bxa3 {[%clk 0:00:08]} 44. Kf4 {[%clk 0:01:44]}  Rd5 {[%clk 0:00:07]} 45. Be4 {[%clk 0:01:40]}  Rd2 {[%clk 0:00:06]} 46. h5 {[%clk 0:01:41]}  Rxa2 {[%clk 0:00:03]} 47. h6+ {[%clk 0:01:41]}  Kh8 {[%clk 0:00:04]} 48. g6 {[%clk 0:01:42]}  Rf2+ {[%clk 0:00:03]} 49. Ke5 {[%clk 0:01:41]} 1-0


[Site "https://www.chess.com"]

[Event "Titled Tuesday Blitz March 28 Late 2023"]
[White "Makarian, Rudik"]
[Black "Ozalp, Burak"]
[WhiteFideId "44105681"]
[BlackFideId "6314210"]
[WhiteElo "2436"]
[BlackElo "2106"]
[Result "1-0"]
[Round "02"]
[TimeControl "180+2"]
[Date "2023.03.28"]
[WhiteClock "0:02:15"]
[BlackClock "0:00:48"]

1. e4 {[%clk 0:03:00]}  e5 {[%clk 0:02:59]} 2. Nf3 {[%clk 0:03:00]}  Nc6 {[%clk 0:02:59]} 3. Bc4 {[%clk 0:03:01]}  Nf6 {[%clk 0:02:58]} 4. d3 {[%clk 0:03:01]}  h6 {[%clk 0:02:57]} 5. a4 {[%clk 0:02:59]}  Bc5 {[%clk 0:02:56]} 6. c3 {[%clk 0:02:58]}  d6 {[%clk 0:02:49]} 7. b4 {[%clk 0:02:53]}  Nxb4 {[%clk 0:02:29]} 8. cxb4 {[%clk 0:02:53]}  Bxb4+ {[%clk 0:02:30]} 9. Bd2 {[%clk 0:02:53]}  Bc5 {[%clk 0:02:30]} 10. Be3 {[%clk 0:02:52]}  Bb4+ {[%clk 0:02:21]} 11. Nbd2 {[%clk 0:02:52]}  c6 {[%clk 0:02:21]} 12. Bxf7+ {[%clk 0:02:50]}  Kf8 {[%clk 0:02:16]} 13. Qb3 {[%clk 0:02:49]}  a5 {[%clk 0:02:12]} 14. Nh4 {[%clk 0:02:49]}  d5 {[%clk 0:02:04]} 15. Bg6 {[%clk 0:02:33]}  Nxe4 {[%clk 0:01:58]} 16. dxe4 {[%clk 0:02:28]}  Qxh4 {[%clk 0:01:58]} 17. exd5 {[%clk 0:02:27]}  Qf6 {[%clk 0:01:36]} 18. Be4 {[%clk 0:02:25]}  Bf5 {[%clk 0:01:28]} 19. Bxf5 {[%clk 0:02:22]}  Qxf5 {[%clk 0:01:29]} 20. O-O {[%clk 0:02:23]}  g5 {[%clk 0:01:22]} 21. dxc6 {[%clk 0:02:23]}  bxc6 {[%clk 0:01:23]} 22. Rac1 {[%clk 0:02:22]}  Rc8 {[%clk 0:01:22]} 23. Bc5+ {[%clk 0:02:22]}  Kg7 {[%clk 0:01:20]} 24. Bxb4 {[%clk 0:02:22]}  axb4 {[%clk 0:01:21]} 25. Qxb4 {[%clk 0:02:23]}  Rhd8 {[%clk 0:01:21]} 26. Ne4 {[%clk 0:02:21]}  c5 {[%clk 0:01:12]} 27. Nxc5 {[%clk 0:02:16]}  Rb8 {[%clk 0:01:13]} 28. Qe4 {[%clk 0:02:14]}  Qxe4 {[%clk 0:01:11]} 29. Nxe4 {[%clk 0:02:15]}  Rd4 {[%clk 0:01:12]} 30. Nc5 {[%clk 0:02:15]}  Kf6 {[%clk 0:01:08]} 31. Rfd1 {[%clk 0:02:15]}  Rdb4 {[%clk 0:00:48]} 32. Nd7+ {[%clk 0:02:15]} 1-0


[Site "https://www.chess.com"]

[Event "Titled Tuesday Blitz March 28 Late 2023"]
[White "Dardha, Daniel"]
[Black "Gatterer, Florian"]
[WhiteFideId "240990"]
[BlackFideId "811688"]
[WhiteElo "2581"]
[BlackElo "2221"]
[Result "0-1"]
[Round "02"]
[TimeControl "180+2"]
[Date "2023.03.28"]
[WhiteClock "0:00:01"]
[BlackClock "0:00:06"]

1. e4 {[%clk 0:03:00]}  c5 {[%clk 0:03:00]} 2. Qg4 {[%clk 0:03:00]}  Nf6 {[%clk 0:02:56]} 3. Qh4 {[%clk 0:03:00]}  Nc6 {[%clk 0:02:54]} 4. Nf3 {[%clk 0:03:00]}  d6 {[%clk 0:02:53]} 5. Bb5 {[%clk 0:03:00]}  Bd7 {[%clk 0:02:50]} 6. O-O {[%clk 0:02:59]}  e5 {[%clk 0:02:47]} 7. d3 {[%clk 0:02:57]}  Be7 {[%clk 0:02:46]} 8. Bg5 {[%clk 0:02:51]}  a6 {[%clk 0:02:43]} 9. Bxc6 {[%clk 0:02:48]}  Bxc6 {[%clk 0:02:42]} 10. Nc3 {[%clk 0:02:47]}  Nd7 {[%clk 0:02:31]} 11. Qg3 {[%clk 0:02:39]}  Bxg5 {[%clk 0:02:29]} 12. Nxg5 {[%clk 0:02:40]}  h5 {[%clk 0:02:15]} 13. f4 {[%clk 0:02:37]}  h4 {[%clk 0:02:10]} 14. Qf2 {[%clk 0:02:33]}  Qe7 {[%clk 0:02:03]} 15. a4 {[%clk 0:02:20]}  O-O-O {[%clk 0:01:56]} 16. Qe3 {[%clk 0:02:12]}  f6 {[%clk 0:01:55]} 17. Nh3 {[%clk 0:02:03]}  Nf8 {[%clk 0:01:42]} 18. Rab1 {[%clk 0:01:56]}  a5 {[%clk 0:01:39]} 19. f5 {[%clk 0:01:47]}  b6 {[%clk 0:01:25]} 20. Nf2 {[%clk 0:01:43]}  Nd7 {[%clk 0:01:19]} 21. Nd5 {[%clk 0:01:40]}  Qf7 {[%clk 0:00:59]} 22. Qf3 {[%clk 0:01:28]}  Bxa4 {[%clk 0:00:55]} 23. c3 {[%clk 0:01:16]}  Bc6 {[%clk 0:00:52]} 24. b4 {[%clk 0:01:15]}  Bxd5 {[%clk 0:00:46]} 25. exd5 {[%clk 0:01:14]}  axb4 {[%clk 0:00:45]} 26. cxb4 {[%clk 0:01:15]}  Kc7 {[%clk 0:00:46]} 27. Rb2 {[%clk 0:01:08]}  Qh5 {[%clk 0:00:27]} 28. Qe3 {[%clk 0:00:49]}  Qh6 {[%clk 0:00:23]} 29. Qe2 {[%clk 0:00:48]}  h3 {[%clk 0:00:19]} 30. Nxh3 {[%clk 0:00:43]}  g6 {[%clk 0:00:18]} 31. bxc5 {[%clk 0:00:41]}  bxc5 {[%clk 0:00:16]} 32. d4 {[%clk 0:00:37]}  Rb8 {[%clk 0:00:14]} 33. Ra2 {[%clk 0:00:36]}  exd4 {[%clk 0:00:10]} 34. Ra7+ {[%clk 0:00:32]}  Rb7 {[%clk 0:00:10]} 35. Rxb7+ {[%clk 0:00:22]}  Kxb7 {[%clk 0:00:10]} 36. Qb5+ {[%clk 0:00:22]}  Kc7 {[%clk 0:00:10]} 37. Qc6+ {[%clk 0:00:21]}  Kd8 {[%clk 0:00:10]} 38. Qxd6 {[%clk 0:00:18]}  Qe3+ {[%clk 0:00:10]} 39. Nf2 {[%clk 0:00:13]}  Qe5 {[%clk 0:00:09]} 40. Qxe5 {[%clk 0:00:08]}  Nxe5 {[%clk 0:00:09]} 41. fxg6 {[%clk 0:00:04]}  Rg8 {[%clk 0:00:07]} 42. Ne4 {[%clk 0:00:05]}  c4 {[%clk 0:00:07]} 43. Rxf6 {[%clk 0:00:02]}  Rxg6 {[%clk 0:00:06]} 44. Rf5 {[%clk 0:00:02]}  Nd3 {[%clk 0:00:04]} 45. d6 {[%clk 0:00:01]}  Re6 {[%clk 0:00:03]} 46. Rf8+ {[%clk 0:00:01]}  Kd7 {[%clk 0:00:03]} 47. Nf6+ {[%clk 0:00:01]}  Kxd6 {[%clk 0:00:04]} 48. Ng4 {[%clk 0:00:02]}  Re1+ {[%clk 0:00:03]} 49. Rf1 {[%clk 0:00:02]}  Rxf1+ {[%clk 0:00:03]} 50. Kxf1 {[%clk 0:00:03]}  c3 {[%clk 0:00:04]} 51. Nf2 {[%clk 0:00:02]}  Nb4 {[%clk 0:00:03]} 52. Ke2 {[%clk 0:00:02]}  Kd5 {[%clk 0:00:03]} 53. Nd3 {[%clk 0:00:02]}  Nc2 {[%clk 0:00:02]} 54. g4 {[%clk 0:00:01]}  Kc4 {[%clk 0:00:02]} 55. g5 {[%clk 0:00:02]}  Nb4 {[%clk 0:00:03]} 56. Nxb4 {[%clk 0:00:02]}  Kxb4 {[%clk 0:00:03]} 57. g6 {[%clk 0:00:03]}  c2 {[%clk 0:00:02]} 58. Kd2 {[%clk 0:00:03]}  Kb3 {[%clk 0:00:03]} 59. g7 {[%clk 0:00:04]}  Kb2 {[%clk 0:00:03]} 60. g8=Q {[%clk 0:00:05]}  c1=Q+ {[%clk 0:00:04]} 61. Kd3 {[%clk 0:00:05]}  Qc3+ {[%clk 0:00:04]} 62. Ke4 {[%clk 0:00:06]}  d3 {[%clk 0:00:05]} 63. Qb8+ {[%clk 0:00:05]}  Kc1 {[%clk 0:00:05]} 64. Qf4+ {[%clk 0:00:04]}  d2 {[%clk 0:00:04]} 65. Kd5 {[%clk 0:00:03]}  Kc2 {[%clk 0:00:04]} 66. Qf2 {[%clk 0:00:02]}  Qd3+ {[%clk 0:00:04]} 67. Kc6 {[%clk 0:00:02]}  Kc1 {[%clk 0:00:04]} 68. Qf4 {[%clk 0:00:01]}  Kc2 {[%clk 0:00:04]} 69. Qf2 {[%clk 0:00:01]}  Kc1 {[%clk 0:00:05]} 70. Qf4 {[%clk 0:00:02]}  Qc2+ {[%clk 0:00:05]} 71. Kb7 {[%clk 0:00:02]}  Kb1 {[%clk 0:00:05]} 72. Qb4+ {[%clk 0:00:01]}  Qb2 {[%clk 0:00:06]} 0-1


[Site "https://www.chess.com"]

[Event "Titled Tuesday Blitz March 28 Late 2023"]
[White "Tari, Aryan"]
[Black "sissahungrychess"]
[WhiteFideId "1510045"]
[WhiteElo "2583"]
[BlackElo "2405"]
[Result "1-0"]
[Round "02"]
[TimeControl "180+2"]
[Date "2023.03.28"]
[WhiteClock "0:00:44"]
[BlackClock "0:00:08"]

1. d4 {[%clk 0:03:00]}  Nf6 {[%clk 0:02:51]} 2. Nf3 {[%clk 0:03:01]}  e6 {[%clk 0:02:51]} 3. g3 {[%clk 0:03:00]}  d5 {[%clk 0:02:51]} 4. Bg2 {[%clk 0:03:00]}  Be7 {[%clk 0:02:50]} 5. O-O {[%clk 0:03:00]}  b5 {[%clk 0:02:48]} 6. a4 {[%clk 0:02:54]}  b4 {[%clk 0:02:48]} 7. c4 {[%clk 0:02:54]}  bxc3 {[%clk 0:02:48]} 8. Nxc3 {[%clk 0:02:52]}  O-O {[%clk 0:02:48]} 9. a5 {[%clk 0:02:50]}  Ba6 {[%clk 0:02:45]} 10. Ne5 {[%clk 0:02:46]}  Nfd7 {[%clk 0:02:41]} 11. Nxd7 {[%clk 0:02:10]}  Nxd7 {[%clk 0:02:42]} 12. Re1 {[%clk 0:02:10]}  Rb8 {[%clk 0:02:40]} 13. e4 {[%clk 0:02:07]}  dxe4 {[%clk 0:02:27]} 14. Nxe4 {[%clk 0:02:08]}  c5 {[%clk 0:02:27]} 15. d5 {[%clk 0:02:06]}  exd5 {[%clk 0:01:57]} 16. Qxd5 {[%clk 0:02:07]}  Bb7 {[%clk 0:01:28]} 17. Qh5 {[%clk 0:01:27]}  Bxe4 {[%clk 0:00:43]} 18. Bxe4 {[%clk 0:01:28]}  Nf6 {[%clk 0:00:44]} 19. Qf3 {[%clk 0:01:26]}  Nxe4 {[%clk 0:00:43]} 20. Rxe4 {[%clk 0:01:13]}  Bf6 {[%clk 0:00:43]} 21. Qe2 {[%clk 0:01:06]}  Rb4 {[%clk 0:00:26]} 22. Rxb4 {[%clk 0:01:03]}  cxb4 {[%clk 0:00:27]} 23. Be3 {[%clk 0:01:03]}  Qd7 {[%clk 0:00:19]} 24. Rd1 {[%clk 0:01:02]}  Qa4 {[%clk 0:00:19]} 25. Rd5 {[%clk 0:01:00]}  Qa1+ {[%clk 0:00:16]} 26. Kg2 {[%clk 0:01:00]}  Qxb2 {[%clk 0:00:16]} 27. Qxb2 {[%clk 0:00:59]}  Bxb2 {[%clk 0:00:17]} 28. Bxa7 {[%clk 0:00:59]}  Bc3 {[%clk 0:00:16]} 29. Rb5 {[%clk 0:00:57]}  Ra8 {[%clk 0:00:15]} 30. Be3 {[%clk 0:00:54]}  h6 {[%clk 0:00:15]} 31. Bb6 {[%clk 0:00:49]}  Kf8 {[%clk 0:00:09]} 32. Kf3 {[%clk 0:00:49]}  Ke7 {[%clk 0:00:09]} 33. Ke4 {[%clk 0:00:49]}  Ke6 {[%clk 0:00:09]} 34. Kd3 {[%clk 0:00:50]}  Be1 {[%clk 0:00:09]} 35. Bd4 {[%clk 0:00:47]}  g6 {[%clk 0:00:08]} 36. Re5+ {[%clk 0:00:47]}  Kd6 {[%clk 0:00:08]} 37. Rxe1 {[%clk 0:00:47]}  Rxa5 {[%clk 0:00:08]} 38. Kc4 {[%clk 0:00:47]}  Ra2 {[%clk 0:00:08]} 39. Rb1 {[%clk 0:00:44]} 1-0


[Site "https://www.chess.com"]

[Event "Titled Tuesday Blitz March 28 Late 2023"]
[White "Mammadov, Zaur"]
[Black "Delorme, Axel"]
[WhiteFideId "13401033"]
[BlackFideId "632023"]
[WhiteElo "2441"]
[BlackElo "2478"]
[Result "1-0"]
[Round "02"]
[TimeControl "180+2"]
[Date "2023.03.28"]
[WhiteClock "0:02:23"]
[BlackClock "0:01:48"]

1. e4 {[%clk 0:03:00]}  c5 {[%clk 0:02:59]} 2. c3 {[%clk 0:03:01]}  d5 {[%clk 0:02:57]} 3. exd5 {[%clk 0:02:59]}  Qxd5 {[%clk 0:02:58]} 4. d4 {[%clk 0:03:00]}  Nf6 {[%clk 0:02:56]} 5. Nf3 {[%clk 0:03:01]}  e6 {[%clk 0:02:55]} 6. Bd3 {[%clk 0:03:00]}  Be7 {[%clk 0:02:54]} 7. O-O {[%clk 0:03:00]}  O-O {[%clk 0:02:55]} 8. c4 {[%clk 0:03:01]}  Qd8 {[%clk 0:02:54]} 9. dxc5 {[%clk 0:03:01]}  Bxc5 {[%clk 0:02:54]} 10. Nc3 {[%clk 0:03:02]}  h6 {[%clk 0:02:49]} 11. a3 {[%clk 0:03:03]}  b6 {[%clk 0:02:44]} 12. b4 {[%clk 0:03:02]}  Be7 {[%clk 0:02:44]} 13. Bb2 {[%clk 0:03:01]}  Bb7 {[%clk 0:02:44]} 14. Qe2 {[%clk 0:03:01]}  Nbd7 {[%clk 0:02:41]} 15. Rad1 {[%clk 0:03:02]}  a5 {[%clk 0:02:37]} 16. b5 {[%clk 0:02:56]}  Bxf3 {[%clk 0:02:36]} 17. gxf3 {[%clk 0:02:50]}  Qc7 {[%clk 0:02:29]} 18. Kh1 {[%clk 0:02:48]}  Ne5 {[%clk 0:02:16]} 19. Nd5 {[%clk 0:02:40]}  exd5 {[%clk 0:02:14]} 20. Bxe5 {[%clk 0:02:41]}  Qc5 {[%clk 0:02:09]} 21. Rg1 {[%clk 0:02:35]}  dxc4 {[%clk 0:01:54]} 22. Rxg7+ {[%clk 0:02:22]}  Kxg7 {[%clk 0:01:52]} 23. Rg1+ {[%clk 0:02:22]}  Kh8 {[%clk 0:01:48]} 24. Qd2 {[%clk 0:02:23]} 1-0


[Site "https://www.chess.com"]